[Event "Romanian Superleague 2022"]
[Site "Oradea"]
[Date "2022.09.24"]
[Round "4.21"]
[White "Voiteanu, Gabriel"]
[Black "Stepanencu, Nicodim-Cosmin"]
[Result "1/2-1/2"]
[ECO "E73"]
[WhiteElo "2154"]
[BlackElo "2289"]
[Annotator "TA"]
[PlyCount "120"]
[EventDate "2022.09.21"]
[EventType "team-tourn"]
[EventCountry "ROU"]
[SourceTitle "playchess.com"]
[Source "ChessBase"]
[SourceQuality "1"]
[TimeControl "40/5400+30:1800+30"]

{[%evp 13,120,46,60,64,67,61,46,-18,-3,-9,0,-10,0,0,-1,-87,-95,-102,-60,-58,-61,-65,-58,-62,-54,-64,8,-41,27,29,45,39,25,38,153,0,0,0,0,0,0,-213,-208,-199,-200,-228,-217,-513,-342,-337,-182,-173,-167,-181,0,-614,-606,-598,-593,-752,-752,-751,-740,-2076,-1516,-10925,-8979,-12829,-12831,-12831,-12832,-7903,-1353,-12841,-12842,-12842,-12843,-12844,0,0,0,0,0,0,0,0,0,0,0,0,0,0,0,0,0,0,0,0,0,0,0,0,0,0,0,0,0,0,0]} 1. d4 {[%emt 0:00:06]} Nf6 {[%emt 0:00:07]} 2. c4 {[%emt 0:00:08]} g6 {[%emt 0:00:10]} 3. Nc3 {[%emt 0:00:30]} Bg7 {[%emt 0:00:11]} 4. e4 {[%emt 0:00:08]} d6 {[%emt 0:00:13]} 5. Be2 {[%emt 0:00:36]} O-O {[%emt 0:00:09]} 6. Be3 {[%emt 0:00:12]} e5 {[%emt 0:00:06]} 7. d5 {[%emt 0:00:18]} Na6 {[%emt 0:00:23]} 8. g4 {[%emt 0:00:40] E73: King's Indian: Averbakh Variation without 6...c5.} Nc5 {[%emt 0:00:11]} 9. f3 {[%emt 0:00:25]} h5 {[%emt 0:00:08] seems to push 9...a5 aside.} 10. b4 {[%emt 0:00:59]} (10. g5 $14) 10... Na6 $1 $11 {[%emt 0:00:09]} 11. a3 {[%emt 0:00:14]} hxg4 {[%emt 0:00:12]} 12. Bg5 $1 {[%emt 0:00:36][%cal Rf3g4] [#]} c6 $146 {[%emt 0:00:15]} ({Predecessor:} 12... gxf3 13. Bxf3 Qe8 14. Qe2 Nh7 15. Bd2 f5 16. h4 Nf6 17. Nh3 c6 18. Ng5 cxd5 19. cxd5 {0-1 (26) Bacrot,E (2642)-Jones,G (2671) Chess.com INT 2022}) 13. fxg4 {[%emt 0:18:14]} cxd5 {[%emt 0:00:34]} 14. Nxd5 {[%emt 0:08:18]} (14. cxd5 $11 Qb6 15. h3) 14... Nc7 $17 {[%emt 0:00:15]} 15. h4 {[%emt 0:14:03]} Ne6 {[%emt 0:02:03]} 16. Bxf6 {[%emt 0:08:14]} Bxf6 {[%emt 0:00:06]} 17. g5 {[%emt 0:00:16]} Bg7 {[%emt 0:04:59]} 18. Nf3 {[%emt 0:07:30]} a5 {[%emt 0:17:42]} 19. b5 {[%emt 0:20:04]} Re8 {[%emt 0:16:08]} (19... Nf4 $15 20. Qd2 Be6) 20. Qd2 {[%emt 0:04:25]} (20. Nh2 $11) 20... Nc5 {[%emt 0:00:16]} (20... Nf4 $15) 21. Qe3 $1 $11 {[%emt 0:01:17]} Be6 {[%emt 0:16:38]} 22. h5 {[%emt 0:01:12]} Bxd5 {[%emt 0:02:09]} 23. cxd5 {[%emt 0:00:24] Hoping for Nh4.} a4 {[%emt 0:00:02]} (23... f5 $1 $14 24. Nd2 (24. hxg6 $2 f4 $19) 24... f4) 24. Nh2 $2 {[%emt 0:05:06]} ({White should try} 24. Nd2 $16) 24... Nb3 $36 {[%emt 0:13:11][%mdl 2048] Black fights for an advantage.} 25. Ra2 {[%emt 0:02:28] hxg6 is the strong threat.} Qa5+ {[%emt 0:04:01]} 26. Kf2 {[%emt 0:00:37] Black must now prevent Kg2.} Rec8 {[%emt 0:00:10][%cal Be8c8,Bc8c3,Bc3a3][%mdl 32] Strongly threatening ...Rc3.} 27. Ng4 $2 {[%emt 0:01:13]} (27. Kg2 $11 {and White has nothing to worry.} Qc3 28. Qf2) 27... Rc3 $19 {[%emt 0:00:10]} 28. Bd3 {[%emt 0:00:27]} Nc5 {[%emt 0:01:14]} 29. Rd2 {[%emt 0:00:36]} Rxa3 {[%emt 0:01:13]} 30. hxg6 $2 {[%emt 0:05:05]} (30. Kg2) 30... fxg6 {[%emt 0:01:26]} 31. Kg2 {[%emt 0:00:34]} Nxd3 {[%emt 0:10:56]} (31... Qb4 $142 32. Nf6+ Kf7) 32. Rxd3 {[%emt 0:00:12]} Rxd3 {[%emt 0:00:35]} 33. Qxd3 {[%emt 0:00:13]} Rc8 $2 {[%emt 0:00:07]} ({Better is} 33... Qb4 $19 34. Nf2 Rf8) 34. Nf6+ $2 {[%emt 0:00:46][%mdl 8192]} (34. Nh6+ $11 Bxh6 35. Rxh6) 34... Bxf6 {[%emt 0:00:16]} 35. gxf6 {[%emt 0:00:04][%cal Oh1h8][%mdl 4096] Endgame KQR-KQR} Qc3 $1 {[%emt 0:00:17]} 36. f7+ {[%emt 0:00:58]} Kxf7 {[%emt 0:00:37]} 37. Rh7+ {[%emt 0:00:14]} Kf6 {[%emt 0:00:23]} 38. Qxc3 {[%emt 0:01:28]} Rxc3 {[%emt 0:00:01]} 39. Rxb7 {[%emt 0:00:07] [#] KR-KR} Kg5 $1 {[%emt 0:04:18]} 40. Rb6 {[%emt 0:00:00] [#]} Kg4 $1 {[%emt 0:00:00]} ({Weaker is} 40... Kf4 41. Rxd6 Rc2+ 42. Kh3 $17) 41. Kf2 {[%emt 0:04:37]} Kf4 {[%emt 0:07:20]} 42. Ke2 {[%emt 0:00:05]} Kxe4 {[%emt 0:07:07]} (42... Rb3 $142 43. Rxd6 Kxe4) 43. Rxd6 {[%emt 0:00:06]} Rc2+ {[%emt 0:05:07]} 44. Kd1 {[%emt 0:00:25]} Rb2 {[%emt 0:04:33]} 45. Rxg6 {[%emt 0:06:08]} a3 $2 {[%emt 0:00:16]} (45... Kxd5 $19 46. Ra6 Rb4) 46. Ra6 $1 $11 {[%emt 0:01:04] The position is equal.} a2 {[%emt 0:01:44]} 47. b6 $1 {[%emt 0:00:47]} Kxd5 {[%emt 0:01:17]} (47... Kd3 $5 48. Ra3+ $8 Kc4 $11) 48. b7 {[%emt 0:01:03]} Rb1+ {[%emt 0:07:45]} 49. Ke2 {[%emt 0:00:24]} Rxb7 {[%emt 0:00:19]} 50. Rxa2 {[%emt 0:00:13]} Rh7 {[%emt 0:00:03] aiming for ...Rh2+.} 51. Ra5+ {[%emt 0:00:40]} Ke4 {[%emt 0:00:01]} 52. Ra4+ {[%emt 0:00:10]} Kf5 {[%emt 0:00:01]} 53. Ke3 {[%emt 0:00:26]} Rh3+ {[%emt 0:00:18]} 54. Ke2 {[%emt 0:00:08]} Rb3 {[%emt 0:02:08]} 55. Rc4 {[%emt 0:00:18]} Ke6 {[%emt 0:01:04]} 56. Ra4 {[%emt 0:00:32]} Rb5 {[%emt 0:00:08]} 57. Rh4 {[%emt 0:00:44]} Kd5 {[%emt 0:00:10]} 58. Ke3 {[%emt 0:00:21]} Rb3+ {[%emt 0:00:19]} 59. Ke2 {[%emt 0:00:02]} e4 {[%emt 0:01:35]} 60. Rh8 {[%emt 0:00:16]} Ke5 {[%emt 0:07:14] And White is the lucky defender.  Weighted Error Value: White=0.80/Black=0.40} 1/2-1/2

[Event "Romanian Superleague 2022"]
[Site "Oradea"]
[Date "2022.09.24"]
[Round "4.22"]
[White "Vajda, Albert"]
[Black "Oprisor, Razvan-Gabriel"]
[Result "1/2-1/2"]
[ECO "C04"]
[WhiteElo "2305"]
[BlackElo "2175"]
[Annotator "TA"]
[PlyCount "62"]
[EventDate "2022.09.21"]
[EventType "team-tourn"]
[EventCountry "ROU"]
[SourceTitle "playchess.com"]
[Source "ChessBase"]
[SourceQuality "1"]
[TimeControl "40/5400+30:1800+30"]

{[%evp 16,62,6,-14,-10,-1,-23,-3,0,-4,14,0,0,0,0,0,27,18,19,25,12,15,42,18,75,51,71,77,73,63,83,59,74,67,63,67,50,54,56,57,58,62,78,54,52,56,46,8,28]} 1. e4 {[%emt 0:00:03]} e6 {[%emt 0:00:38]} 2. d3 {[%emt 0:00:20]} d5 {[%emt 0:00:35]} 3. Nd2 {[%emt 0:00:11]} Nf6 {[%emt 0:00:42]} 4. Ngf3 {[%emt 0:00:43]} Nc6 {[%emt 0:01:18]} 5. e5 {[%emt 0:00:35]} Nd7 {[%emt 0:02:10]} 6. d4 {[%emt 0:00:28]} f6 {[%emt 0:02:02]} 7. Bb5 {[%emt 0:03:21]} fxe5 {[%emt 0:02:21]} 8. dxe5 {[%emt 0:00:12]} Be7 {[%emt 0:01:42]} 9. O-O {[%emt 0:00:28]} O-O {[%emt 0:00:57] C04: French Tarrasch: 3...Nc6.} 10. Re1 {[%emt 0:01:35]} a6 {[%emt 0:00:56] [#]} 11. Bd3 $146 {[%emt 0:03:30]} ({Predecessor:} 11. Bf1 Qe8 12. Nb3 Qh5 13. Bd2 b6 14. c4 Bb7 15. cxd5 Nd8 16. Rc1 Bxd5 17. Rxc7 Bxf3 18. gxf3 Nxe5 19. Rxe5 Qxe5 20. Rxe7 {1-0 (40) Psyk,R (2387)-Sernecki,F (2197) Poronin 2021}) 11... Nc5 {[%emt 0:02:41]} 12. Be2 {[%emt 0:05:02]} Qe8 {[%emt 0:05:24]} 13. Nf1 {[%emt 0:05:40]} Qf7 {[%emt 0:28:18]} 14. Ng3 {[%emt 0:03:25]} Nd7 {[%emt 0:02:47]} 15. Bd3 {[%emt 0:07:58]} Nb4 {[%emt 0:02:53]} 16. Bf1 {[%emt 0:06:34]} c5 {[%emt 0:00:41]} 17. c3 {[%emt 0:14:25]} Nc6 {[%emt 0:00:17]} 18. Bd3 {[%emt 0:00:24]} c4 {[%emt 0:01:50]} 19. Bb1 {[%emt 0:03:55]} Nc5 {[%emt 0:03:47]} (19... b5 $11 {remains equal.}) 20. b4 $16 {[%emt 0:02:37]} ({Inferior is} 20. Qc2 Nd3 21. Re2 Bd7 $17) 20... Nd3 {[%emt 0:08:17]} 21. Bxd3 {[%emt 0:00:34]} cxd3 {[%emt 0:00:08]} 22. Qxd3 {[%emt 0:00:43]} Bd7 {[%emt 0:00:46]} 23. Be3 {[%emt 0:05:29] White is more active.} Qg6 {[%emt 0:04:55]} 24. Qxg6 {[%emt 0:03:01]} hxg6 {[%emt 0:00:04]} 25. Ne2 {[%emt 0:02:30]} Rxf3 {[%emt 0:04:30][%mdl 64] [#] Remove Defender} 26. gxf3 {[%emt 0:00:14]} Nxe5 {[%emt 0:00:06]} 27. Kg2 {[%emt 0:04:33]} Nc4 {[%emt 0:03:59]} 28. f4 {[%emt 0:04:12]} g5 {[%emt 0:04:14]} 29. fxg5 {[%emt 0:07:01]} (29. Bc5 $5 {[%cal Rc5e7]} Bd8 30. Bd4 $16) 29... Nxe3+ {[%emt 0:01:22]} 30. fxe3 {[%emt 0:00:10] Strongly threatening h4.} Bxg5 {[%emt 0:00:06]} 31. Nf4 {[%emt 0:02:48]} Rc8 {[%emt 0:01:43] Weighted Error Value: White=0.08 (flawless) /Black=0.10 (very precise)} 1/2-1/2

[Event "Romanian Superleague 2022"]
[Site "Oradea"]
[Date "2022.09.24"]
[Round "4.23"]
[White "Ursente, Tudor-Alexandru"]
[Black "Balla, Tamas-Kristof"]
[Result "0-1"]
[ECO "A23"]
[WhiteElo "1931"]
[BlackElo "2325"]
[Annotator "TA"]
[PlyCount "68"]
[EventDate "2022.09.21"]
[EventType "team-tourn"]
[EventCountry "ROU"]
[SourceTitle "playchess.com"]
[Source "ChessBase"]
[SourceQuality "1"]
[TimeControl "40/5400+30:1800+30"]

{[%evp 9,68,-35,-35,-38,-39,-123,-122,-163,-114,-127,-128,-144,-85,-83,-75,-174,-83,-164,-164,-192,-191,-196,-186,-218,-218,-214,-207,-259,-250,-256,-242,-326,-325,-321,-308,-306,-288,-426,-412,-525,-497,-470,-390,-379,-364,-355,-352,-348,-326,-543,-548,-570,-554,-584,-573,-647,-644,-647,-582,-563,-549]} 1. c4 {[%emt 0:00:13]} e5 {[%emt 0:00:06]} 2. Nc3 {[%emt 0:00:05]} Nf6 {[%emt 0:00:09]} 3. g3 {[%emt 0:00:35]} c6 {[%emt 0:00:07]} 4. e4 {[%emt 0:01:03]} d5 {[%emt 0:03:59]} 5. cxd5 {[%emt 0:00:07]} cxd5 {[%emt 0:00:08]} 6. exd5 {[%emt 0:00:11] A23: English Opening: 1...e5 2 Nc3 Nf6 3 g3 c6.} Nxd5 {[%emt 0:00:31] White must now prevent ...Nc6.} 7. Bg2 {[%emt 0:00:04]} (7. Nf3 $15) 7... Nb4 $17 {[%emt 0:04:12] Black is more active.} 8. Be4 {[%emt 0:17:23] Black is better.} Nd3+ {[%emt 0:02:54]} (8... N8c6 $19 9. a3 Nd3+ 10. Kf1 f5) 9. Bxd3 {[%emt 0:02:50]} Qxd3 {[%emt 0:00:09]} 10. Qe2 {[%emt 0:02:16]} Qxe2+ {[%emt 0:01:06]} (10... Bf5 $142 $1 {Hoping for ...Nc6.} 11. Qxe5+ Kd7) 11. Ngxe2 {[%emt 0:00:07]} Nc6 {[%emt 0:00:14][%cal Bb8c6,Bc6b4,Bb4c2][%mdl 32] [#] Against d4. ...Nb4 is the strong threat.} 12. Nb5 $146 {[%emt 0:10:50]} (12. d4 $17) ({Predecessor:} 12. a3 Bh3 13. d3 O-O-O 14. f4 Bc5 15. Ne4 Bg2 16. Nxc5 Bxh1 17. Kf2 b6 18. Be3 Bd5 19. Ne4 f5 20. N4c3 Bb3 21. fxe5 Nxe5 22. d4 Ng4+ {0-1 (22) Scheib,E (1502)-Pantaleev,D (2197) Grieskirchen 1998}) 12... Kd8 {[%emt 0:03:24]} (12... Nb4 $19 {is more deadly. Strongly threatening ...Nd3+.} 13. O-O (13. Nc7+ $2 Kd8 $19) 13... Bg4) 13. O-O {[%emt 0:05:49]} (13. d3 $17 {was called for.}) 13... Bh3 $1 $19 {[%emt 0:02:22]} 14. Re1 {[%emt 0:00:17]} Nb4 {[%emt 0:01:08] aiming for ...Nc2.} 15. d4 {[%emt 0:22:58]} Nc2 $1 $36 {[%emt 0:03:34][%csl LRa1,LRe1][%mdl 2048] Keeping White busy.} 16. Rd1 {[%emt 0:00:03]} Nxa1 {[%emt 0:08:33]} 17. dxe5+ {[%emt 0:00:04] [#]} Bd7 $1 {[%emt 0:00:07] Threatens to win with ...Nc2.} 18. Bg5+ {[%emt 0:01:03] [#]} Be7 $1 {[%emt 0:00:21]} 19. Bxe7+ {[%emt 0:00:11]} Kxe7 {[%emt 0:00:08]} 20. Na3 {[%emt 0:02:02]} Bg4 {[%emt 0:01:18]} 21. Kf1 {[%emt 0:00:08] [#]} Rhd8 $1 {[%emt 0:02:07]} 22. Rxa1 {[%emt 0:00:27]} Rd2 {[%emt 0:01:08][%csl LRb2,LRe2]} 23. Nf4 {[%emt 0:07:34]} (23. Nc3 $142) 23... g5 {[%emt 0:03:06]} 24. Ng2 {[%emt 0:15:18]} Rxb2 {[%emt 0:00:19]} 25. Ne3 {[%emt 0:00:08]} Be6 {[%emt 0:00:40]} 26. Nac4 {[%emt 0:00:56]} Bxc4+ {[%emt 0:00:38]} 27. Nxc4 {[%emt 0:00:01][%mdl 4096] Endgame KRR-KRN} Rc2 {[%emt 0:00:30]} 28. Ne3 {[%emt 0:02:51]} Rc5 {[%emt 0:00:38]} 29. f4 $2 {[%emt 0:00:05]} (29. Rb1 {was necessary.} b6 30. f4) 29... gxf4 {[%emt 0:00:49] Black is clearly winning.} 30. gxf4 {[%emt 0:00:01]} Rac8 {[%emt 0:00:27]} 31. Re1 {[%emt 0:00:16]} Rc1 {[%emt 0:00:16]} 32. Nf5+ {[%emt 0:00:32]} Kf8 {[%emt 0:00:52]} 33. Nd6 {[%emt 0:00:05]} Rxe1+ 34. Kxe1 {[%emt 0:00:01]} Rc1+ {[%emt 0:00:24] Weighted Error Value: White=0.47/Black=0.13 (very precise)} 0-1

[Event "Romanian Superleague 2022"]
[Site "Oradea"]
[Date "2022.09.24"]
[Round "4.24"]
[White "Doncea, Vladimir"]
[Black "Gulie, Cosmin"]
[Result "1-0"]
[ECO "E09"]
[WhiteElo "2342"]
[BlackElo "1973"]
[Annotator "TA"]
[PlyCount "83"]
[EventDate "2022.09.21"]
[EventType "team-tourn"]
[EventCountry "ROU"]
[SourceTitle "playchess.com"]
[Source "ChessBase"]
[SourceQuality "1"]
[TimeControl "40/5400+30:1800+30"]

{[%evp 26,83,75,29,85,70,133,146,186,177,261,259,145,69,80,-36,-39,-25,-16,-529,-520,-619,-618,-605,-606,-559,0,0,0,0,0,0,0,-75,-89,-78,20,-276,-209,-209,-209,-205,0,-609,1695,315,278,228,214,0,747,758,731,640,785,662,29997,29998,29998,29999]} 1. d4 {[%emt 0:00:07]} d5 {[%emt 0:00:19]} 2. c4 {[%emt 0:00:07]} e6 {[%emt 0:00:09]} 3. Nf3 {[%emt 0:00:07]} Nf6 {[%emt 0:00:12]} 4. g3 {[%emt 0:00:05]} Be7 {[%emt 0:00:34]} 5. Bg2 {[%emt 0:00:06]} O-O {[%emt 0:00:28]} 6. O-O {[%emt 0:00:05]} c6 {[%emt 0:00:36]} 7. Qc2 {[%emt 0:00:06]} b6 {[%emt 0:00:52]} 8. Rd1 {[%emt 0:00:05]} Nbd7 {[%emt 0:07:02]} 9. b3 {[%emt 0:01:16]} Ba6 {[%emt 0:01:20]} 10. Nbd2 {[%emt 0:00:08]} c5 {[%emt 0:05:50]} 11. e4 {[%emt 0:06:48]} cxd4 {[%emt 0:04:39]} 12. Nxd4 {[%emt 0:04:40]} Rc8 {[%emt 0:03:59]} 13. exd5 {[%emt 0:00:11]} exd5 {[%emt 0:00:06]} 14. Bb2 {[%emt 0:02:23]} (14. Qf5 $16) 14... Bc5 {[%emt 0:02:04] E09: Closed Catalan: Main Line: 7 Qc2 c6 8 Nbd2.} (14... b5 $11) 15. Qf5 $16 {[%emt 0:01:07] [#]} Bxd4 $146 {[%emt 0:08:06]} (15... g6 $14 16. Qg5 Re8) ({Predecessor:} 15... dxc4 16. Nc6 Qc7 17. Ne4 Qxc6 18. Nxf6+ Qxf6 19. Bxf6 Nxf6 20. g4 h6 21. h4 Rce8 {1-0 (30) Mueller,F (2240)-Baier,S (2250) Germany 2006}) 16. Bxd4 {[%emt 0:00:09]} dxc4 {[%emt 0:02:22] White is clearly better.} 17. Ne4 {[%emt 0:15:38]} (17. Nxc4 Bxc4 18. bxc4 Qe7 $14) (17. bxc4 $6 Qe7 $14) 17... Qe7 {[%emt 0:04:31]} (17... Nxe4 {keeps fighting.} 18. Bxe4 g6) 18. Re1 $18 {[%emt 0:02:54] Nxf6+ is the strong threat.} Nxe4 {[%emt 0:01:32]} (18... Qd8 $18 19. Bxf6 Nxf6) 19. Rxe4 {[%emt 0:03:44]} (19. Bxe4 $16 {[%csl Ge4][%cal Rf5h7]} g6 20. Qf4) 19... Qd6 $14 {[%emt 0:00:45]} 20. Bxg7 {[%emt 0:00:41] White is more active.} Kxg7 $15 {[%emt 0:01:52]} 21. Rg4+ $1 {[%emt 0:00:24]} Kh8 {[%emt 0:00:09]} 22. Be4 $2 {[%emt 0:00:21][%mdl 8192]} (22. Rh4 $1 $11 Nf6 23. Rh6) 22... Nf6 $19 {[%emt 0:00:31] aiming for ...Rc5.} 23. Rh4 {[%emt 0:03:12][%cal Rh4h7] Intending Rxh7+ and mate.} Rc5 {[%emt 0:03:30]} 24. Rxh7+ {[%emt 0:00:04]} Kg8 {[%emt 0:00:04]} 25. Qh3 {[%emt 0:00:10] Rh8+ would kill now.} Nxe4 $2 {[%emt 0:00:09]} (25... Qd2 $19 26. Qh4 Qg5 27. bxc4 Qxh4 28. Rxh4 Rxc4) 26. Rh8+ $11 {[%emt 0:00:09]} Kg7 {[%emt 0:00:04]} 27. Rh7+ $40 {[%emt 0:00:04][%mdl 128] Black needs to defend precisely.} Kg8 {[%emt 0:00:05]} 28. Rh8+ {[%emt 0:14:56]} Kg7 {[%emt 0:00:07]} 29. Qh7+ {[%emt 0:00:41]} (29. Rh7+ $1 $11 Kg8) 29... Kf6 $17 {[%emt 0:00:07]} 30. Qh6+ {[%emt 0:00:04]} Kf5 {[%emt 0:01:00]} (30... Ke5 $17 31. Qf4+ (31. f4+ Kd4 $17) 31... Ke6 32. Qh6+ Kd7 33. Qxf8 Qxf8 34. Rxf8 c3 35. Rxf7+ Ke6) 31. g4+ $2 {[%emt 0:00:12][%mdl 8192]} (31. Qh3+ $1 $11 {and White is okay.} Kf6 32. Rh6+ Kg7 33. Rxd6 Nxd6 34. Qg4+ Kh7 35. Qh3+ Kg7 36. Qg4+ Kh7 37. Qd7) 31... Kxg4 $19 {[%emt 0:01:53]} 32. f3+ {[%emt 0:09:26]} Kxf3 {[%emt 0:00:58]} 33. Qh3+ {[%emt 0:00:44]} Ng3 $2 {[%emt 0:01:15]} ({Better is} 33... Kf4 $19 {( -> ...Rg5+)} 34. Rh4+ Kg5 35. Qg4+ Kf6 36. Rh6+ Ke7 37. Rxd6 Nxd6 38. Re1+ Kd8) 34. Rf1+ $2 {[%emt 0:00:40][%mdl 8192]} (34. Qg2+ $11 Kg4 35. Qh3+ Kg5 36. Qh4+ Kf5 37. Qh3+ Kg5 38. Qh4+ Kf5 39. Qh3+ Kg5) 34... Ke4 $4 {[%emt 0:10:24][%mdl 8192]} (34... Ke3 $19 35. Rh6 f6 $1 36. hxg3 cxb3) 35. Qg4+ $2 {[%emt 0:00:59]} (35. Qg2+ Kd4 36. Rd1+ Kc3 37. Rxd6) 35... Kd3 $18 {[%emt 0:02:22]} (35... Ke3 36. Qf3+ Kd4 37. Rd1+ Ke5 38. Re1+ Kd4 39. Rh4+) 36. Qd1+ {[%emt 0:13:43]} Kc3 {[%emt 0:02:26] [#] And now ...Qxd1 would win.} 37. Qxd6 {[%emt 0:00:33]} (37. Rf3+ $1 $18 Kb2 38. Rf2+ Ka3 39. Qxd6 Rxh8 40. bxc4 (40. hxg3 Bb7 $17) 40... Ne2+ 41. Rxe2 Rg8+ 42. Kf2 Bxc4 43. Re3+ Kb4 44. Qd2+ Kb5 45. Qd7+ Kb4 46. Qd2+ (46. Qxa7 Rg6 $16) 46... Kb5 47. Qd7+ Kb4 48. a3+ (48. Qxa7 Rg6 $16) 48... Ka5 49. Qxa7+ Ba6 50. Qxf7) 37... Rxh8 $4 {[%emt 0:00:28][%mdl 8192]} (37... Ne2+ $11 38. Kg2 Rxh8 39. Qf6+ Kc2 40. Qxh8 Rg5+ 41. Kh3 c3) 38. Qxg3+ {[%emt 0:00:35]} Kb4 {[%emt 0:00:46]} 39. Qe1+ {[%emt 0:03:37]} c3 {[%emt 0:00:43]} 40. Rf4+ {[%emt 0:00:00]} ({Weaker is} 40. Qe4+ Ka3 41. Qa4+ Kb2 42. Qxa6 Rg8+ 43. Kh1 c2 $14) 40... Ka3 {[%emt 0:00:00]} 41. Qc1+ {[%emt 0:04:15]} ({Don't blunder} 41. Ra4+ $2 Kb2 42. Rg4 (42. Rxa6 $2 Rg8+ 43. Kh1 c2 $19) 42... c2 $19) 41... Kxa2 {[%emt 0:01:33]} 42. Qc2+ {[%emt 0:00:06] Weighted Error Value: White=0.93/Black=0.97} 1-0

[Event "Romanian Superleague 2022"]
[Site "Oradea"]
[Date "2022.09.24"]
[Round "4.25"]
[White "Berkes, Ferenc"]
[Black "Efimenko, Zahar"]
[Result "1-0"]
[ECO "D02"]
[WhiteElo "2651"]
[BlackElo "2599"]
[Annotator "TA"]
[PlyCount "61"]
[EventDate "2022.09.21"]
[EventType "team-tourn"]
[EventCountry "ROU"]
[SourceTitle "playchess.com"]
[Source "ChessBase"]
[SourceQuality "1"]
[TimeControl "40/5400+30:1800+30"]

{[%evp 13,61,0,8,5,9,14,20,14,21,6,11,6,38,32,28,43,18,29,42,36,40,40,46,40,129,118,140,135,239,237,227,231,373,371,393,392,563,562,542,506,461,204,512,479,612,573,695,681,1170,782]} 1. d4 {[%emt 0:00:02]} Nf6 {[%emt 0:00:36]} 2. g3 {[%emt 0:00:16]} d5 {[%emt 0:01:24]} 3. Nf3 {[%emt 0:00:11]} g6 {[%emt 0:00:30]} 4. Bg2 {[%emt 0:00:11]} Bg7 {[%emt 0:00:09]} 5. O-O {[%emt 0:00:16]} O-O {[%emt 0:00:28]} 6. c3 {[%emt 0:00:07]} Nbd7 {[%emt 0:01:11]} 7. a4 {[%emt 0:00:15]} a5 {[%emt 0:00:39]} 8. Re1 {[%emt 0:07:05] D02: 1 d4 d5 2 Nf3 sidelines, including 2...Nf6 3 g3 and 2...Nf6 3 Bf4.} b6 {[%emt 0:02:35] [#]} 9. c4 $146 {[%emt 0:01:52]} ({Predecessor:} 9. Bf4 Nh5 10. Be3 Bb7 11. Qc1 e5 12. dxe5 Nxe5 13. Nxe5 Bxe5 14. Nd2 Bg7 15. Nf3 Nf6 {0-1 (64) Svane,R (2615)-Wagner,D (2572) Chess.com INT 2021}) 9... e6 {[%emt 0:04:00]} 10. cxd5 {[%emt 0:01:31] The position is equal.} exd5 {[%emt 0:00:16]} 11. Nc3 {[%emt 0:00:29]} Bb7 {[%emt 0:12:26]} 12. Bf4 {[%emt 0:00:20]} Ne4 {[%emt 0:02:26]} 13. Rc1 {[%emt 0:10:06]} Nxc3 {[%emt 0:00:33]} 14. bxc3 {[%emt 0:06:39]} Re8 {[%emt 0:02:02]} 15. h4 {[%emt 0:08:40]} Nf8 {[%emt 0:05:38]} 16. Qd2 {[%emt 0:03:20]} Ne6 {[%emt 0:01:53]} 17. Bh6 {[%emt 0:00:23]} Bh8 {[%emt 0:06:02]} 18. Ng5 {[%emt 0:06:54]} Bc6 {[%emt 0:13:53] [#]} (18... Nxg5 $14 19. Bxg5 Qd7) 19. Nxe6 $1 $16 {[%emt 0:11:12] White is more active.} Rxe6 {[%emt 0:02:46]} 20. c4 {[%emt 0:00:09]} dxc4 {[%emt 0:05:36]} (20... Ra7 $16 {is a better defense.}) 21. d5 $18 {[%emt 0:00:12]} Rd6 {[%emt 0:00:06][%cal Rc6d5]} 22. e4 {[%emt 0:00:14][%cal Be2e4,Be4e5][%mdl 32]} Bxa4 {[%emt 0:02:06]} (22... Bb7 $142 23. Rxc4 c5) 23. e5 {[%emt 0:04:36]} Rd7 {[%emt 0:00:06]} 24. Qf4 {[%emt 0:17:49]} Rxd5 {[%emt 0:03:30]} (24... Rb8 $142 25. Qxc4 b5) 25. e6 {[%emt 0:01:39]} fxe6 {[%emt 0:04:26]} 26. Qxc4 {[%emt 0:07:41][%mdl 64] [#] Pin} Bb5 {[%emt 0:06:28]} 27. Qe4 $40 {[%emt 0:02:07][%mdl 128] White attacks with force.} (27. Qa2 $142 Be8 28. Rxe6 Rd1+ 29. Rxd1 Qxd1+ 30. Kh2) 27... Be5 $2 {[%emt 0:04:11]} (27... Qf6 {is more resistant.}) 28. Bf4 {[%emt 0:05:00] White is clearly winning.} Bxf4 {[%emt 0:16:16]} (28... Bd3 $2 29. Qe3 Bxf4 30. Qxe6+ Kg7 31. gxf4 $18) 29. Qxe6+ {[%emt 0:00:04][%mdl 64] Pin} Kh8 {[%emt 0:01:55] And now ...Rd6 would win.} 30. Bxd5 {[%emt 0:00:47]} Bd6 {[%emt 0:00:30]} 31. Qe4 {[%emt 0:01:08] Weighted Error Value: White=0.10 (very precise) /Black=0.65} 1-0

[Event "Romanian Superleague 2022"]
[Site "Oradea"]
[Date "2022.09.24"]
[Round "4.26"]
[White "Baklan, Vladimir"]
[Black "Lupulescu, Constantin"]
[Result "1/2-1/2"]
[ECO "C07"]
[WhiteElo "2578"]
[BlackElo "2614"]
[Annotator "TA"]
[PlyCount "44"]
[EventDate "2022.09.21"]
[EventType "team-tourn"]
[EventCountry "ROU"]
[SourceTitle "playchess.com"]
[Source "ChessBase"]
[SourceQuality "1"]
[TimeControl "40/5400+30:1800+30"]

{[%evp 27,28,0,0]} 1. e4 {[%emt 0:00:03]} e6 {[%emt 0:00:03]} 2. d4 {[%emt 0:00:07]} d5 {[%emt 0:00:03]} 3. Nd2 {[%emt 0:00:12]} c5 {[%emt 0:00:04]} 4. exd5 {[%emt 0:00:07]} Qxd5 {[%emt 0:00:05]} 5. Ngf3 {[%emt 0:00:07]} cxd4 {[%emt 0:00:10]} 6. Bc4 {[%emt 0:00:07]} Qd6 {[%emt 0:00:09]} 7. O-O {[%emt 0:01:02]} Nf6 {[%emt 0:00:15]} 8. Nb3 {[%emt 0:01:23]} Nc6 {[%emt 0:00:17]} 9. Nbxd4 {[%emt 0:04:48]} Nxd4 {[%emt 0:00:17]} 10. Qxd4 {[%emt 0:00:08]} Qxd4 {[%emt 0:01:38]} 11. Nxd4 {[%emt 0:00:04]} Bd7 {[%emt 0:03:02]} 12. Bf4 {[%emt 0:04:40]} Rc8 {[%emt 0:02:04]} 13. Be2 {[%emt 0:04:05]} Bc5 {[%emt 0:07:10]} 14. Nb3 {[%emt 0:00:20]} Bb6 {[%emt 0:07:55] [#]} {Predecessor:} 15. c3 $146 {C07: French Tarrasch: 3...c5, 4 Ngf3 and 4 exd5 Qxd5.} Nd5 16. Bd6 Bc7 17. Ba3 f6 18. Bh5+ g6 19. Bf3 Bc6 20. Nd4 Kf7 21. c4 Nb6 22. Nxc6 bxc6 {0-1 (47) Harikrishna,P (2737)-Huzman,A (2580) Berlin 2015} 1/2-1/2